bitfinex/quotes_SOLUSD_20220212
["timestamp","ask_amount","ask_price","bid_price","bid_amount"]
[1644654743747,1.48287421,95.629,95.53,15.13]
[1644654744149,1.48287421,95.62,95.53,15.13]
[1644654744352,50.24721919,95.619,95.53,15.13]
[1644654744549,48.76434498,95.619,95.53,15.13]
[1644654744750,48.76434498,95.619,95.53,50.28399002]
[1644654745553,1.48287421,95.63,95.53,50.28399002]
[1644654745752,0.04339258,95.62,95.53,50.28399002]
[1644654746152,1.48287421,95.629,95.53,50.28399002]
[1644654746352,1.48287421,95.629,95.531,22.9611]
[1644654746557,0.04339258,95.63,95.532,5.231]
[1644654746754,0.04339258,95.63,95.532,19.45459002]
[1644654746755,1.48287421,95.63,95.532,19.45459002]
[1644654746959,1.48287421,95.616,95.494,5.231]
[1644654747154,1.48287421,95.605,95.48,15.13]
[1644654747356,1.48287421,95.593,95.46,15.13]
[1644654747558,15.17339258,95.58,95.443,1.4280073]
[1644654747755,15.7196,95.54,95.428,1.4280073]
[1644654747959,52.4066,95.53,95.412,1.4280073]
[1644654748157,52.4066,95.53,95.404,1.4280073]
[1644654748158,1.48287421,95.527,95.404,1.4280073]
[1644654748355,5.237,95.526,95.404,1.4280073]
[1644654748556,1.48287421,95.525,95.403,1.4280073]
[1644654748759,15.7203,95.52,95.404,113.0]
[1644654748960,15.7203,95.52,95.403,1.4280073]
[1644654748961,24.4503,95.52,95.403,1.4280073]
[1644654749157,5.237,95.519,95.4,15.13]
[1644654749357,6.71987421,95.519,95.4,15.13]
[1644654749560,52.4188,95.51,95.4,15.13]
[1644654749756,49.61692194,95.509,95.382,1.4280073]
[1644654749956,49.61692194,95.509,95.38,15.13]
[1644654749957,15.7244,95.5,95.38,15.13]
[1644654750157,15.7244,95.5,95.364,1.4280073]
[1644654750158,15.13,95.49,95.364,1.4280073]
[1644654750359,5.239,95.489,95.357,1.4280073]
[1644654750562,5.239,95.489,95.354,1.4280073]
[1644654750763,5.239,95.489,95.353,1.4280073]
[1644654751465,5.239,95.489,95.35,15.13]
[1644654751668,15.7299,95.47,95.35,30.859]
[1644654751866,36.74351429,95.468,95.35,30.859]
[1644654752068,36.74351429,95.468,95.333,16.36329366]
[1644654752069,36.74351429,95.468,95.36,15.13]
[1644654752666,5.24,95.467,95.36,15.13]
[1644654752866,36.74351429,95.468,95.36,15.13]
[1644654753468,36.74351429,95.468,95.341,1.4280073]
[1644654753771,5.24,95.467,95.34,52.4245]
[1644654753967,36.74351429,95.468,95.36,12.58]
[1644654754770,36.74351429,95.468,95.37,15.7258]
[1644654755772,36.74351429,95.468,95.371,2.38366791]
[1644654757171,5.24,95.467,95.371,2.38366791]
[1644654757374,5.239,95.499,95.371,2.38366791]
[1644654757572,5.238,95.507,95.371,2.38366791]
[1644654758073,42.58950898,95.506,95.371,2.38366791]
[1644654758275,5.238,95.505,95.371,2.38366791]
[1644654758671,15.7258,95.5,95.38,15.7237]
[1644654758874,5.238,95.499,95.38,15.7237]
[1644654759074,5.238,95.499,95.381,2.38366791]
[1644654759878,15.7274,95.49,95.381,2.38366791]
[1644654760074,5.239,95.489,95.364,2.38366791]
[1644654760277,9.34105,95.489,95.33,12.58]
[1644654760478,32.7956559,95.489,95.33,12.58]
[1644654760679,23.4546059,95.488,95.33,12.58]
[1644654760880,15.733,95.46,95.332,2.38366791]
[1644654761079,34.39034956,95.459,95.332,2.38366791]
[1644654761280,5.241,95.458,95.332,2.38366791]
[1644654761480,7.52367655,95.458,95.332,2.38366791]
[1644654762511,2.28267655,95.457,95.332,2.38366791]
[1644654762712,5.241,95.456,95.332,2.38366791]
[1644654762916,5.241,95.456,95.33,12.58]
[1644654762917,15.7347,95.45,95.33,12.58]
[1644654763208,12.58,95.44,95.307,1.1658584]
[1644654763610,7.52467655,95.439,95.307,1.1658584]
[1644654764009,2.28267655,95.438,95.307,1.1658584]
[1644654764210,15.7381,95.43,95.307,1.1658584]
[1644654764408,42.67936731,95.428,95.308,2.38366791]
[1644654764612,5.242,95.427,95.307,1.1658584]
[1644654765507,15.7395,95.42,95.307,1.1658584]
[1644654765707,5.243,95.419,95.307,1.1658584]
[1644654767210,5.243,95.419,95.308,2.38366791]
[1644654768010,5.243,95.419,95.31,15.7356]
[1644654768213,42.67936731,95.428,95.32,12.58]
[1644654768714,5.242,95.427,95.321,2.38366791]
[1644654769313,5.242,95.427,95.33,15.7326]
[1644654769516,5.242,95.447,95.33,28.3126]
[1644654769817,5.242,95.447,95.331,2.38366791]
[1644654770014,48.303,95.448,95.331,2.38366791]
[1644654770413,36.46012786,95.447,95.331,2.38366791]
[1644654770815,36.46012786,95.447,95.35,15.7296]
[1644654771214,36.46012786,95.447,95.351,2.38366791]
[1644654772218,36.46012786,95.447,95.36,12.58]
[1644654772416,5.24,95.469,95.36,28.3069]
[1644654772618,47.7613,95.496,95.361,2.38366791]
[1644654773317,46.73690492,95.495,95.361,2.38366791]
[1644654773518,5.239,95.494,95.361,2.38366791]
[1644654773717,15.7283,95.49,95.361,2.38366791]
[1644654773918,5.239,95.489,95.361,2.38366791]
[1644654774919,5.239,95.489,95.36,28.3078]
[1644654775119,2.28267655,95.488,95.36,28.3078]
[1644654775523,5.239,95.487,95.36,28.3078]
[1644654776123,7.52167655,95.487,95.36,28.3078]
[1644654776321,2.28267655,95.487,95.36,28.3078]
[1644654776528,5.239,95.486,95.36,28.3078]
[1644654777625,5.239,95.486,95.354,23.1859]
[1644654777626,15.7292,95.48,95.354,23.1859]
[1644654777828,12.58,95.47,95.354,23.1859]
[1644654778029,5.24,95.469,95.347,1.4280073]
[1644654778226,25.68970713,95.469,95.345,1.4280073]
[1644654778422,27.97238368,95.469,95.344,1.4280073]
[1644654778623,2.28267655,95.468,95.344,1.4280073]
[1644654778824,47.49784418,95.466,95.345,1.4280073]
[1644654779023,5.24,95.465,95.344,1.4280073]
[1644654779224,7.52267655,95.465,95.343,1.4280073]
[1644654779424,2.28267655,95.464,95.343,1.4280073]
[1644654779629,12.58,95.46,95.347,1.4280073]
[1644654779925,7.52267655,95.459,95.347,1.4280073]
[1644654780125,7.52267655,95.459,95.346,1.4280073]
[1644654780526,2.28267655,95.458,95.342,1.4280073]
[1644654780728,5.241,95.457,95.338,1.4280073]
[1644654780926,5.241,95.457,95.337,1.4280073]
[1644654781126,2.28267655,95.456,95.336,1.4280073]
[1644654781326,22.73238368,95.456,95.336,1.4280073]
[1644654781528,5.241,95.455,95.336,1.4280073]
[1644654781726,12.58,95.44,95.337,1.4280073]
[1644654781934,5.241,95.439,95.336,1.4280073]
[1644654782129,5.241,95.439,95.335,1.4280073]
[1644654782627,5.241,95.439,95.336,1.4280073]
[1644654782833,12.58,95.44,95.338,1.4280073]
[1644654783029,12.58,95.44,95.34,1.4280073]
[1644654783229,5.241,95.453,95.343,1.4280073]
[1644654783430,5.241,95.458,95.351,1.4280073]
[1644654783630,5.241,95.458,95.352,1.4280073]
[1644654784029,2.28267655,95.479,95.353,70.38366791]
[1644654784232,5.24,95.493,95.374,1.4280073]
[1644654784434,2.91450754,95.535,95.387,1.4280073]
[1644654784435,1.48287421,95.521,95.387,1.4280073]
[1644654784634,1.48287421,95.537,95.403,1.4280073]
[1644654784831,4.37176131,95.591,95.43,1.4280073]
[1644654784832,0.04339258,95.55,95.43,1.4280073]
[1644654785031,0.04339258,95.56,95.44,12.58]
[1644654785232,0.04339258,95.55,95.46,15.7114]
[1644654785436,0.04339258,95.56,95.47,12.58]
[1644654785633,0.04339258,95.59,95.47,12.58]
[1644654785835,0.04339258,95.6,95.47,12.58]
[1644654786033,0.04339258,95.6,95.448,1.4280073]
[1644654786034,5.232,95.589,95.448,1.4280073]
[1644654786232,0.04339258,95.58,95.443,6.6620073]
[1644654786432,5.234,95.588,95.45,15.713]
[1644654786631,0.04339258,95.57,95.45,15.713]
[1644654786831,5.235,95.579,95.45,15.713]
[1644654786832,2.27157953,95.579,95.451,5.234]
[1644654787132,0.04339258,95.56,95.46,52.3592]
[1644654787340,36.05638576,95.598,95.46,52.3592]
[1644654787341,0.04339258,95.57,95.47,12.58]
[1644654787532,0.04339258,95.59,95.5,15.7026]
[1644654787734,0.04339258,95.58,95.501,5.232]
[1644654787937,36.05638576,95.598,95.501,5.232]
[1644654788133,36.05638576,95.598,95.501,7.61566791]
[1644654788432,36.05638576,95.598,95.502,2.38366791]
[1644654788833,36.05638576,95.598,95.52,15.7011]
[1644654789234,36.05638576,95.598,95.521,2.38366791]
[1644654789432,36.05638576,95.598,95.521,10.20366791]
[1644654789834,36.05638576,95.598,95.522,2.38366791]
[1644654790834,36.05638576,95.598,95.53,15.6993]
[1644654791436,36.05638576,95.598,95.531,2.38366791]
[1644654791839,36.05638576,95.598,95.512,2.38366791]
[1644654792035,5.232,95.597,95.496,2.38366791]
[1644654792235,0.04339258,95.59,95.496,2.38366791]
[1644654792435,36.05638576,95.598,95.496,2.38366791]
[1644654792738,0.04339258,95.59,95.5,12.58]
[1644654792939,36.05638576,95.598,95.5,28.2845]
[1644654793137,36.05638576,95.598,95.501,7.61566791]
[1644654793539,36.05638576,95.598,95.502,2.38366791]
[1644654794841,36.05638576,95.598,95.51,15.7026]
[1644654795041,36.05638576,95.598,95.511,5.232]
[1644654795240,36.05638576,95.598,95.511,2.38366791]
[1644654795467,5.232,95.597,95.512,2.38366791]
[1644654797773,36.05638576,95.598,95.513,5.232]
[1644654797970,36.05638576,95.598,95.52,28.2811]
[1644654798368,36.05638576,95.598,95.521,2.38366791]
[1644654799369,36.05638576,95.598,95.513,5.232]
[1644654799569,5.232,95.597,95.513,5.232]
[1644654799770,5.232,95.597,95.485,2.38366791]
[1644654799969,0.04339258,95.59,95.485,2.38366791]
[1644654800169,5.232,95.589,95.485,2.38366791]
[1644654801375,0.04339258,95.59,95.486,5.232]
[1644654801571,0.04339258,95.59,95.486,33.39655559]
[1644654801772,0.04339258,95.59,95.51,15.7029]
[1644654802072,36.05638576,95.598,95.5,12.58]
[1644654802271,5.232,95.597,95.49,12.58]
[1644654802877,5.232,95.597,95.491,2.38366791]
[1644654804272,36.05638576,95.598,95.491,2.38366791]
[1644654804674,36.05638576,95.598,95.491,20.7082235]
[1644654805074,36.05638576,95.598,95.492,2.38366791]
[1644654805276,36.05638576,95.598,95.5,15.7046]
[1644654805476,36.05638576,95.598,95.51,12.58]
[1644654806076,36.05638576,95.598,95.511,2.38366791]
[1644654807277,36.05638576,95.598,95.512,5.232]
[1644654807475,36.05638576,95.598,95.5,2.38366791]
[1644654807476,5.232,95.597,95.5,2.38366791]
[1644654807676,7.50357953,95.597,95.463,5.232]
[1644654807877,0.04339258,95.59,95.462,47.4483]
[1644654808078,5.234,95.589,95.462,47.4483]
[1644654808278,5.234,95.589,95.482,2.38366791]
[1644654808279,0.04339258,95.58,95.482,2.38366791]
[1644654808578,0.04339258,95.59,95.463,2.38366791]
[1644654808778,0.04339258,95.58,95.463,2.38366791]
[1644654808978,5.234,95.579,95.463,2.38366791]
[1644654809378,5.234,95.579,95.47,12.58]
[1644654809579,0.04339258,95.58,95.471,5.234]
[1644654809778,0.04339258,95.59,95.471,25.9422235]
[1644654809980,5.232,95.589,95.472,20.7082235]
[1644654810179,0.04339258,95.58,95.472,20.7082235]
[1644654810382,0.04339258,95.58,95.473,20.7082235]
[1644654810582,5.234,95.579,95.473,20.7082235]
[1644654810784,0.04339258,95.59,95.48,15.7078]
[1644654810983,5.234,95.589,95.48,28.2878]
[1644654811182,0.04339258,95.58,95.481,20.7082235]
[1644654811384,0.04339258,95.59,95.481,20.7082235]
[1644654811583,0.04339258,95.58,95.482,25.9402235]
[1644654811781,0.04339258,95.59,95.482,20.7082235]
[1644654811984,0.04339258,95.59,95.483,7.61566791]
[1644654812485,0.04339258,95.59,95.49,15.7061]
[1644654812683,0.04339258,95.59,95.491,5.232]
[1644654812883,0.04339258,95.59,95.491,7.61566791]
[1644654813084,0.04339258,95.59,95.492,2.38366791]
[1644654813287,0.04339258,95.59,95.493,5.232]
[1644654813686,0.04339258,95.59,95.494,2.38366791]
[1644654813884,48.1284,95.597,95.5,28.2844]
[1644654814116,36.05638576,95.598,95.5,28.2844]
[1644654814388,36.05638576,95.598,95.501,20.7082235]
[1644654814788,36.05638576,95.598,95.502,22.1362308]
[1644654814986,36.05638576,95.598,95.505,1.4280073]
[1644654815186,36.05638576,95.598,95.507,1.4280073]
[1644654815389,36.05638576,95.598,95.51,12.58]
[1644654815791,36.05638576,95.598,95.511,5.232]
[1644654815988,36.05638576,95.598,95.511,7.61566791]
[1644654816188,36.05638576,95.598,95.512,2.38366791]
[1644654816989,36.05638576,95.598,95.513,1.4280073]
[1644654817189,36.05638576,95.598,95.512,3.81167521]
[1644654817388,36.05638576,95.598,95.514,3.81167521]
[1644654817790,36.05638576,95.598,95.515,2.38366791]
[1644654818691,36.05638576,95.598,95.515,3.81167521]
[1644654818892,36.05638576,95.598,95.516,1.4280073]
[1644654819089,36.05638576,95.598,95.516,3.81167521]
[1644654819293,36.05638576,95.598,95.517,2.38366791]
[1644654820191,36.05638576,95.598,95.52,15.701]
[1644654820391,36.05638576,95.598,95.52,29.7090073]
[1644654820594,36.05638576,95.598,95.522,1.4280073]
[1644654820893,36.05638576,95.598,95.523,2.38366791]
[1644654821090,36.05638576,95.598,95.523,9.04367521]
[1644654821293,36.05638576,95.598,95.523,3.81167521]
[1644654821493,36.05638576,95.598,95.524,7.61566791]
[1644654821692,36.05638576,95.598,95.524,9.04367521]
[1644654821892,36.05638576,95.598,95.53,15.6997]
[1644654822293,36.05638576,95.598,95.531,2.38366791]
[1644654826697,0.04339258,95.61,95.531,2.38366791]
[1644654826897,5.232,95.618,95.531,2.38366791]
[1644654827497,5.232,95.618,95.54,12.58]
[1644654827698,43.8426525,95.617,95.54,15.08]
[1644654827900,43.8426525,95.617,95.541,2.38366791]
[1644654828400,43.8426525,95.617,95.54,15.08]
[1644654830316,43.8426525,95.617,95.54,30.7775]
[1644654835422,43.8426525,95.617,95.541,5.231]
[1644654838131,43.8426525,95.617,95.54,30.7775]
[1644654839432,43.28536161,95.617,95.54,30.7775]
[1644654840534,43.28536161,95.617,95.54,15.08]
[1644654840735,5.231,95.616,95.54,15.08]
[1644654840936,6.71387421,95.616,95.503,1.4280073]
[1644654841135,0.04339258,95.61,95.5,16.5080073]
[1644654841435,5.232,95.609,95.5,16.5080073]
[1644654841641,7.50946143,95.609,95.5,15.08]
[1644654841837,2.27746143,95.608,95.5,30.7844]
[1644654842036,5.232,95.607,95.5,30.7844]
[1644654843135,1.48287421,95.606,95.5,30.7844]
[1644654843338,5.232,95.605,95.5,30.7844]
[1644654845046,5.232,95.605,95.502,1.4280073]
[1644654845237,2.27746143,95.608,95.502,1.4280073]
[1644654845438,2.27746143,95.608,95.501,23.9655073]
[1644654846238,0.04339258,95.61,95.501,23.9655073]
[1644654846439,1.48287421,95.608,95.502,5.232]
[1644654846639,1.48287421,95.607,95.501,22.5375]
[1644654846840,19.17946143,95.607,95.501,22.5375]
[1644654847038,11.67,95.607,95.501,22.5375]
[1644654848038,5.232,95.606,95.501,22.5375]
[1644654850239,2.27746143,95.605,95.501,22.5375]
[1644654850938,3.76033564,95.605,95.501,22.5375]
[1644654851140,5.232,95.604,95.501,22.5375]
[1644654852642,7.50946143,95.604,95.501,22.5375]
[1644654852844,2.27746143,95.604,95.501,22.5375]
[1644654853043,36.92605907,95.602,95.502,2.38366791]
[1644654853443,5.232,95.601,95.502,2.38366791]
[1644654854646,36.92605907,95.602,95.502,2.38366791]
[1644654854849,36.92605907,95.602,95.51,15.7024]
[1644654855046,36.92605907,95.602,95.52,15.08]
[1644654855446,36.92605907,95.602,95.521,2.38366791]
[1644654855648,36.92605907,95.602,95.521,19.91377905]
[1644654855846,36.92605907,95.602,95.522,17.53011114]
[1644654856046,36.92605907,95.602,95.523,5.232]
[1644654856247,36.92605907,95.602,95.523,7.61566791]
[1644654856648,36.92605907,95.602,95.524,2.38366791]
[1644654856847,0.04339258,95.61,95.525,5.232]
[1644654857052,0.04339258,95.62,95.54,15.08]
[1644654857351,23.9309,95.629,95.541,5.231]
[1644654857548,23.9309,95.629,95.541,7.61466791]
[1644654857749,23.9309,95.629,95.542,2.38366791]
[1644654857952,40.99712678,95.628,95.542,2.38366791]
[1644654858149,40.99712678,95.628,95.543,5.23]
[1644654858350,40.99712678,95.628,95.542,2.38366791]
[1644654858552,40.99712678,95.628,95.544,2.38366791]
[1644654862884,40.99712678,95.628,95.545,5.23]
[1644654863266,40.99712678,95.628,95.546,2.38366791]
[1644654863666,40.99712678,95.628,95.547,5.23]
[1644654864064,40.99712678,95.628,95.548,2.38366791]
[1644654865364,5.23,95.627,95.548,2.38366791]
[1644654865866,5.23,95.627,95.53,15.08]
[1644654866466,5.23,95.627,95.53,17.46366791]
[1644654867766,64.38272678,95.628,95.53,17.46366791]
[1644654869166,5.231,95.627,95.53,17.46366791]
[1644654869367,5.231,95.627,95.53,50.69307905]
[1644654870386,64.38272678,95.628,95.53,50.69307905]
[1644654870587,5.231,95.627,95.53,50.69307905]
[1644654874294,64.38272678,95.628,95.54,15.6974]
[1644654874593,64.38272678,95.628,95.54,30.7774]
[1644654874792,64.38272678,95.628,95.541,2.38366791]
[1644654877296,64.38272678,95.628,95.542,5.23]
[1644654877695,64.38272678,95.628,95.543,2.38366791]
[1644654877902,69.61272678,95.628,95.543,2.38366791]
[1644654878100,64.38272678,95.628,95.543,2.38366791]
[1644654880303,23.3856,95.628,95.544,5.23]
[1644654880703,23.3856,95.628,95.545,2.38366791]
[1644654881205,46.43361092,95.627,95.545,2.38366791]
[1644654882405,5.23,95.626,95.545,2.38366791]
[1644654882604,51.66361092,95.627,95.545,2.38366791]
[1644654883906,46.43361092,95.627,95.545,2.38366791]
[1644654884909,51.66361092,95.627,95.545,2.38366791]
[1644654885511,5.23,95.627,95.545,2.38366791]
[1644654886109,23.3856,95.628,95.545,2.38366791]
[1644654886509,40.6720929,95.627,95.545,2.38366791]
[1644654887311,40.6720929,95.627,95.55,15.08]
[1644654887712,40.6720929,95.627,95.551,2.38366791]
[1644654888114,0.04339258,95.64,95.551,2.38366791]
[1644654888311,5.23,95.647,95.552,29.4475]
[1644654888512,0.04339258,95.65,95.552,24.2175]
[1644654888710,0.04339258,95.65,95.553,26.57178635]
[1644654889111,0.04339258,95.65,95.554,19.91377905]
[1644654889311,0.04339258,95.65,95.555,5.23]
[1644654889611,0.04339258,95.65,95.57,30.7726]
[1644654889811,5.229,95.659,95.57,30.7726]
[1644654890113,5.229,95.659,95.571,2.38366791]
[1644654891312,48.80683118,95.66,95.571,2.38366791]
[1644654892013,5.229,95.659,95.571,2.38366791]
[1644654893317,48.80683118,95.66,95.571,7.61266791]
[1644654893715,48.80683118,95.66,95.572,2.38366791]
[1644654893915,48.80683118,95.66,95.573,5.229]
[1644654894314,48.80683118,95.66,95.574,2.38366791]
[1644654895216,48.80683118,95.66,95.58,15.6914]
[1644654895616,48.80683118,95.66,95.581,2.38366791]
[1644654895821,48.80683118,95.66,95.581,7.61266791]
[1644654896018,48.80683118,95.66,95.581,2.38366791]
[1644654896423,48.80683118,95.66,95.582,2.38366791]
[1644654900325,5.228,95.659,95.582,2.38366791]
[1644654901427,48.80683118,95.66,95.582,2.38366791]
[1644654902726,47.7055,95.666,95.582,2.38366791]
[1644654902927,0.04339258,95.68,95.583,22.75811114]
[1644654902928,5.228,95.679,95.583,22.75811114]
[1644654903129,0.04339258,95.68,95.584,23.425]
[1644654903329,0.04339258,95.69,95.585,5.228]
[1644654903526,0.04339258,95.69,95.585,43.07891256]
[1644654903725,0.04339258,95.69,95.586,17.93713351]
[1644654903930,0.04339258,95.69,95.6,15.08]
[1644654904155,47.57939701,95.696,95.62,15.685]
[1644654904725,47.57939701,95.696,95.621,2.38366791]
[1644654911242,47.3009812,95.696,95.621,2.38366791]
[1644654912155,47.3009812,95.696,95.63,15.6832]
[1644654912352,23.8113,95.697,95.63,23.0632]
[1644654912552,23.91600268,95.71,95.631,7.60966791]
[1644654912753,23.8726,95.71,95.631,7.60966791]
[1644654913054,23.8726,95.71,95.632,2.38366791]
[1644654913452,36.31936934,95.709,95.632,2.38366791]
[1644654915458,36.31936934,95.709,95.63,15.6832]
[1644654915654,5.226,95.708,95.63,15.6832]
[1644654917656,5.226,95.708,95.621,23.3832]
[1644654917957,5.226,95.708,95.596,2.38366791]
[1644654918155,6.70887421,95.708,95.596,2.38366791]
[1644654918359,1.48287421,95.707,95.603,2.38366791]
[1644654918654,15.6911,95.7,95.59,18.07306791]
[1644654918859,5.227,95.699,95.581,47.24991114]
[1644654919056,15.12340268,95.69,95.58,15.08]
[1644654919256,46.61240007,95.681,95.58,15.08]
[1644654919556,46.61240007,95.681,95.558,2.38366791]
[1644654919557,1.48287421,95.677,95.56,15.08]
[1644654919755,0.04340268,95.67,95.56,15.08]
[1644654919954,0.04340268,95.67,95.561,7.61266791]
[1644654920359,0.04340268,95.67,95.562,19.64706239]
[1644654920557,0.04340268,95.67,95.563,5.229]
[1644654920756,0.04340268,95.67,95.563,7.61266791]
[1644654920956,0.04340268,95.67,95.564,26.79376791]
[1644654921361,5.229,95.669,95.565,2.38366791]
[1644654921556,0.04340268,95.67,95.566,5.229]
[1644654921756,0.04340268,95.67,95.57,30.7731]
[1644654921955,5.229,95.669,95.571,5.229]
[1644654922157,5.229,95.669,95.572,22.8944]
[1644654922557,5.229,95.669,95.572,25.27806791]
[1644654922758,5.229,95.669,95.573,2.38366791]
[1644654922956,15.73930268,95.67,95.573,2.38366791]
[1644654923157,5.228,95.669,95.573,2.38366791]
[1644654923358,15.73930268,95.67,95.573,2.38366791]
[1644654924460,0.04340268,95.67,95.573,2.38366791]
[1644654924659,0.04340268,95.67,95.574,5.228]
[1644654924962,24.8854,95.677,95.574,5.228]
[1644654924963,24.8854,95.677,95.575,2.38366791]
[1644654925159,0.04340268,95.67,95.58,15.6913]
[1644654925359,24.8854,95.677,95.58,30.7713]
[1644654925559,24.8854,95.677,95.581,2.38366791]
[1644654925759,24.8854,95.677,95.581,19.64706239]
[1644654925961,24.8854,95.677,95.582,17.26339448]
[1644654926159,24.8854,95.677,95.583,5.228]
[1644654926562,24.8854,95.677,95.584,17.26339448]
[1644654926761,24.8854,95.677,95.59,15.6899]
[1644654926961,24.8854,95.677,95.59,30.7699]
[1644654927161,24.8854,95.677,95.591,7.61166791]
[1644654927566,24.8854,95.677,95.592,2.38366791]
[1644654927764,24.8854,95.677,95.6,15.6881]
[1644654927968,24.8854,95.677,95.601,5.228]
[1644654928165,24.8854,95.677,95.61,15.08]
[1644654928668,24.8854,95.677,95.611,7.61066791]
[1644654928969,24.8854,95.677,95.611,5.227]
[1644654929168,24.8854,95.677,95.612,2.38366791]
[1644654929364,24.8854,95.677,95.613,5.227]
[1644654929865,24.8854,95.677,95.614,2.38366791]
[1644654930067,43.33217805,95.676,95.614,2.38366791]
[1644654931982,24.7037,95.699,95.614,2.38366791]
[1644654932167,5.227,95.697,95.614,2.38366791]
[1644654932366,24.7037,95.699,95.614,2.38366791]
[1644654932568,5.227,95.698,95.614,2.38366791]
[1644654932970,44.66854484,95.697,95.614,2.38366791]
[1644654933168,5.227,95.696,95.614,2.38366791]
[1644654934273,5.227,95.696,95.599,2.38366791]
[1644654934471,24.1561,95.695,95.599,2.38366791]
[1644654934672,5.227,95.694,95.599,2.38366791]
[1644654934872,24.1561,95.695,95.599,2.38366791]
[1644654935071,5.227,95.694,95.599,2.38366791]
[1644654937371,24.1561,95.695,95.6,5.227]
[1644654937771,24.1561,95.695,95.601,2.38366791]
[1644654937973,5.227,95.694,95.601,2.38366791]
[1644654938377,5.227,95.694,95.602,17.26339448]
[1644654938576,24.1561,95.695,95.602,17.26339448]
[1644654938876,24.1561,95.695,95.603,2.38366791]
[1644654939076,24.1561,95.695,95.603,25.17276791]
[1644654939481,24.1561,95.695,95.61,15.6862]
[1644654939677,24.1561,95.695,95.61,30.7662]
[1644654939882,24.1561,95.695,95.611,7.61066791]
[1644654940280,24.1561,95.695,95.612,2.38366791]
[1644654940480,5.227,95.694,95.612,2.38366791]
[1644654941882,24.1561,95.695,95.612,2.38366791]
[1644654942084,24.1561,95.695,95.613,5.227]
[1644654943082,24.1561,95.695,95.614,2.38366791]
[1644654943283,5.227,95.694,95.614,2.38366791]
[1644654944783,24.1561,95.695,95.614,2.38366791]
[1644654951691,24.1561,95.695,95.615,5.227]
[1644654951891,5.227,95.694,95.614,2.38366791]
[1644654954221,24.1561,95.695,95.615,5.227]
[1644654954622,24.1561,95.695,95.616,2.38366791]
[1644654957425,24.1561,95.695,95.617,5.227]
[1644654957725,5.227,95.694,95.616,2.38366791]
[1644654959024,24.1561,95.695,95.616,2.38366791]
[1644654960930,25.63897421,95.695,95.616,2.38366791]
[1644654961133,1.48287421,95.691,95.616,2.38366791]
[1644654961330,1.48287421,95.689,95.616,2.38366791]
[1644654961529,5.227,95.688,95.616,2.38366791]
[1644654962132,1.48287421,95.69,95.616,2.38366791]
[1644654962335,5.227,95.689,95.616,2.38366791]
[1644654962532,1.48287421,95.691,95.616,2.38366791]
[1644654962735,5.227,95.69,95.616,2.38366791]
[1644654963131,1.48287421,95.692,95.616,2.38366791]
[1644654963334,6.70987421,95.691,95.616,2.38366791]
[1644654963532,1.48287421,95.692,95.616,2.38366791]
[1644654963732,1.48287421,95.693,95.616,2.38366791]
[1644654963932,5.227,95.692,95.616,2.38366791]
[1644654964132,5.227,95.693,95.616,2.38366791]
[1644654964334,5.227,95.694,95.616,2.38366791]
[1644654965541,24.1561,95.695,95.616,2.38366791]
[1644654966735,5.227,95.694,95.616,2.38366791]
[1644654967538,1.48287421,95.704,95.617,5.227]
[1644654967738,0.04340268,95.71,95.638,1.4280073]
[1644654967945,0.04340268,95.72,95.642,1.4280073]
[1644654968139,0.04340268,95.73,95.642,1.4280073]
[1644654968338,1.48287421,95.735,95.643,2.38366791]
[1644654968541,5.224,95.729,95.643,2.38366791]
[1644654968738,15.5362,95.73,95.64,15.08]
[1644654968938,5.224,95.728,95.625,2.38366791]
[1644654969138,5.224,95.729,95.625,2.38366791]
[1644654969337,5.224,95.727,95.625,2.38366791]
[1644654969638,1.48287421,95.73,95.626,5.224]
[1644654970741,15.6881,95.72,95.626,5.224]
[1644654970941,62.15688267,95.719,95.626,5.224]
[1644654971139,6.70887421,95.718,95.626,5.224]
[1644654971938,1.48287421,95.717,95.626,5.224]
[1644654972138,15.6899,95.71,95.626,5.224]
[1644654972342,5.226,95.709,95.625,2.38366791]
[1644654975547,15.6911,95.7,95.606,2.38366791]